bitfinex/quotes_BTCUSD_20260221
["timestamp","ask_amount","ask_price","bid_price","bid_amount"]
[1771716191867,0.0004,68109.0,68104.0,0.45240468]
[1771716192009,0.0004,68109.0,68106.0,0.39613492]
[1771716192639,0.0004,68109.0,68105.0,0.02283631]
[1771716192640,0.41043203,68119.0,68109.0,0.39613492]
[1771716192845,0.07340609,68115.0,68109.0,0.39613492]
[1771716193092,0.0734048,68116.0,68109.0,0.39613492]
[1771716193730,0.07340603,68115.0,68109.0,0.39613492]
[1771716194677,0.07340331,68117.0,68110.0,0.07341049]
[1771716194878,0.07340331,68117.0,68110.0,0.07341021]
[1771716195078,0.073404,68118.0,68110.0,0.07341041]
[1771716195275,0.07340333,68117.0,68110.0,0.07341041]
[1771716195521,0.07340301,68119.0,68110.0,0.46954533]
[1771716195522,0.07340227,68118.0,68110.0,0.46954533]
[1771716196446,0.001,68118.0,68110.0,0.46954533]
[1771716196561,0.07340301,68119.0,68110.0,0.46954533]
[1771716196763,0.07340301,68119.0,68110.0,0.39613492]
[1771716197170,0.07340115,68119.0,68111.0,0.07340955]
[1771716197368,0.07356015,68120.0,68113.0,0.07340723]
[1771716197592,0.00016,68120.0,68113.0,0.07340723]
[1771716198892,0.07356061,68120.0,68113.0,0.07340723]
[1771716199072,0.07356061,68120.0,68112.0,0.07340845]
[1771716199073,0.0004,68118.0,68112.0,0.07340845]
[1771716199842,0.0004,68118.0,68111.0,0.39613492]
[1771716200049,0.0004,68118.0,68111.0,0.46954351]
[1771716200459,0.0004,68118.0,68114.0,0.39613492]
[1771716201188,0.0004,68118.0,68108.0,0.2936483]
[1771716201189,0.0004,68118.0,68110.0,0.07340981]
[1771716201394,0.0734032,68117.0,68110.0,0.39613492]
[1771716203061,0.0004,68118.0,68110.0,0.39613492]
[1771716203354,0.0004,68118.0,68113.0,0.4695414]
[1771716203979,0.01370512,68117.0,68113.0,0.4695414]
[1771716204195,0.01370512,68116.0,68113.0,0.4695414]
[1771716204403,0.0004,68118.0,68113.0,0.4695414]
[1771716204597,0.01370434,68117.0,68113.0,0.4695414]
[1771716204803,0.01370434,68116.0,68113.0,0.4695414]
[1771716205003,0.0004,68118.0,68113.0,0.4695414]
[1771716205333,0.01370439,68117.0,68113.0,0.4695414]
[1771716205533,0.0004,68118.0,68113.0,0.49237771]
[1771716206101,0.0004,68118.0,68113.0,0.4695414]
[1771716207224,0.0004,68118.0,68113.0,0.46939752]
[1771716207621,0.0004,68118.0,68113.0,0.49223383]
[1771716207844,0.07356003,68120.0,68113.0,0.46939752]
[1771716208328,0.0004,68118.0,68114.0,0.02283631]
[1771716208503,0.0004,68118.0,68115.0,0.39599109]
[1771716208915,0.0004,68118.0,68112.0,0.07340828]
[1771716210040,0.0004,68118.0,68113.0,0.07340716]
[1771716210340,0.0004,68118.0,68113.0,0.46954208]
[1771716214550,0.0004,68118.0,68113.0,0.46939825]
[1771716215866,0.0004,68118.0,68113.0,0.49223456]
[1771716217522,0.0137065,68117.0,68113.0,0.49223456]
[1771716217767,0.0137065,68116.0,68113.0,0.49223456]
[1771716218066,0.0004,68118.0,68113.0,0.49223456]
[1771716218275,0.01370647,68117.0,68113.0,0.46939825]
[1771716218493,0.01370647,68116.0,68113.0,0.46939825]
[1771716218707,0.0004,68118.0,68113.0,0.46939825]
[1771716218894,0.01370789,68117.0,68113.0,0.46939825]
[1771716219107,0.01370789,68116.0,68113.0,0.46939825]
[1771716219322,0.0004,68118.0,68113.0,0.46939825]
[1771716219523,0.01370955,68117.0,68113.0,0.46939825]
[1771716219737,0.01370955,68116.0,68113.0,0.46939825]
[1771716219900,0.0004,68118.0,68113.0,0.46939825]
[1771716220094,0.01370948,68117.0,68113.0,0.46939825]
[1771716220372,0.01370948,68116.0,68113.0,0.46939825]
[1771716220565,0.01370948,68115.0,68113.0,0.46939825]
[1771716220704,0.0004,68118.0,68113.0,0.46939825]
[1771716220916,0.01371153,68117.0,68113.0,0.46939825]
[1771716221127,0.01371153,68116.0,68113.0,0.46939825]
[1771716221325,0.01371153,68115.0,68110.0,0.0002]
[1771716221568,0.01371456,68114.0,68109.0,0.0734113]
[1771716221870,0.02302412,68117.0,68109.0,0.0734113]
[1771716222070,0.08711954,68116.0,68109.0,0.0734113]
[1771716222252,0.01371463,68115.0,68109.0,0.0734113]
[1771716225412,0.01372497,68114.0,68109.0,0.40406715]
[1771716225714,0.0004,68118.0,68112.0,0.07340746]
[1771716226263,0.0004,68117.0,68112.0,0.07340746]
[1771716226483,0.0004,68117.0,68112.0,0.47747461]
[1771716227790,0.0004,68117.0,68112.0,0.07340746]
[1771716230600,0.0004,68117.0,68112.0,0.47747461]
[1771716232724,0.0004,68117.0,68112.0,0.47012684]
[1771716235136,0.0004,68117.0,68112.0,0.47032684]
[1771716235361,0.0004,68117.0,68112.0,0.06625969]
[1771716236235,0.0004,68117.0,68112.0,0.0002]
[1771716236418,0.0004,68117.0,68112.0,0.07360771]
[1771716237290,0.01372622,68116.0,68112.0,0.07360771]
[1771716237580,0.01372622,68115.0,68112.0,0.07360771]
[1771716237774,0.0004,68117.0,68112.0,0.07360771]
[1771716237775,0.01372622,68114.0,68112.0,0.07360771]
[1771716237925,0.0004,68117.0,68112.0,0.07360771]
[1771716238128,0.01372664,68116.0,68112.0,0.07360771]
[1771716238472,0.01372664,68115.0,68112.0,0.07360771]
[1771716238624,0.01372664,68114.0,68112.0,0.02180392]
[1771716238826,0.0004,68117.0,68112.0,0.02180392]
[1771716239038,0.01372719,68116.0,68112.0,0.02180392]
[1771716239283,0.01372719,68115.0,68112.0,0.02180392]
[1771716239430,0.01372719,68114.0,68112.0,0.02180392]
[1771716239632,0.01372704,68113.0,68112.0,0.02180392]
[1771716242601,0.0004,68117.0,68112.0,0.02180392]
[1771716242842,0.00031,68117.0,68113.0,0.40406715]
[1771716244099,0.00031,68117.0,68112.0,0.02200392]
[1771716247672,0.00031,68117.0,68112.0,0.42607107]
[1771716249953,0.00031,68117.0,68109.0,0.07361095]
[1771716250206,0.0737152,68117.0,68110.0,0.07341049]
[1771716250488,0.07340423,68116.0,68109.0,0.07344243]
[1771716250696,0.07340423,68116.0,68109.0,0.21954243]
[1771716252597,0.07340423,68116.0,68112.0,0.0002]
[1771716254739,0.01373034,68115.0,68112.0,0.0002]
[1771716254912,0.01373034,68114.0,68112.0,0.0002]
[1771716255094,0.01373034,68113.0,68112.0,0.0002]
[1771716255288,0.01373034,68115.0,68112.0,0.0002]
[1771716257733,0.01373034,68115.0,68112.0,0.00011]
[1771716262252,0.01373034,68114.0,68112.0,0.00011]
[1771716262419,0.01373034,68113.0,68112.0,0.00011]
[1771716262597,0.14644586,68116.0,68112.0,0.00011]
[1771716262798,0.07371515,68117.0,68112.0,0.00011]
[1771716262998,0.14644649,68116.0,68112.0,0.00011]
[1771716264167,0.2198507,68116.0,68112.0,0.00011]
[1771716265271,0.14644649,68116.0,68112.0,0.00011]
[1771716265502,0.14644649,68116.0,68112.0,0.38406502]
[1771716267255,0.21985081,68116.0,68112.0,0.38406502]
[1771716270557,0.07340432,68116.0,68112.0,0.00011]
[1771716270833,0.21985204,68116.0,68112.0,0.00011]
[1771716271195,0.21985204,68116.0,68113.0,0.38395502]
[1771716274628,0.01372955,68115.0,68113.0,0.38395502]
[1771716274849,0.01372955,68114.0,68113.0,0.38395502]
[1771716281511,0.01372955,68114.0,68112.0,0.00011]
[1771716281684,0.01372955,68113.0,68112.0,0.00011]
[1771716282059,0.01372955,68114.0,68112.0,0.00011]
[1771716282256,0.01372955,68113.0,68112.0,0.00011]
[1771716282478,0.01372955,68114.0,68112.0,0.00011]
[1771716282690,0.01372955,68113.0,68112.0,0.00011]
[1771716282915,0.07380432,68116.0,68112.0,0.00011]
[1771716282916,0.0004,68116.0,68112.0,0.00011]
[1771716283262,0.07380451,68116.0,68112.0,0.00011]
[1771716284689,0.0004,68115.0,68112.0,0.37123349]
[1771716290655,0.0004,68115.0,68112.0,0.00011]
[1771716291287,0.0004,68115.0,68112.0,0.37123349]
[1771716292088,0.0004,68115.0,68112.0,0.00011]
[1771716294989,0.01373622,68114.0,68112.0,0.00011]
[1771716295288,0.0004,68115.0,68112.0,0.00011]
[1771716295488,0.01373629,68114.0,68112.0,0.00011]
[1771716295691,0.0004,68115.0,68112.0,0.00011]
[1771716295886,0.01373633,68114.0,68112.0,0.00011]
[1771716296069,0.0004,68115.0,68112.0,0.00011]
[1771716296270,0.01373629,68114.0,68112.0,0.00011]
[1771716296471,0.07380537,68115.0,68112.0,0.00011]
[1771716296650,0.01373634,68114.0,68112.0,0.00011]
[1771716296850,0.07380537,68115.0,68112.0,0.00011]
[1771716297045,0.01373632,68114.0,68112.0,0.00011]
[1771716297263,0.07380537,68115.0,68112.0,0.00011]
[1771716297472,0.0137368,68114.0,68112.0,0.00011]
[1771716297667,0.07380537,68115.0,68112.0,0.00011]
[1771716297868,0.01373725,68114.0,68112.0,0.00011]
[1771716298090,0.01373739,68113.0,68104.0,0.07341669]
[1771716298290,0.03782011,68112.0,68103.0,0.07361815]
[1771716298514,0.07341074,68110.0,68103.0,0.07361815]
[1771716298715,0.01373739,68109.0,68103.0,0.07361815]
[1771716298916,0.07341074,68110.0,68103.0,0.07361815]
[1771716299085,0.01373331,68109.0,68103.0,0.07361815]
[1771716299306,0.07341074,68110.0,68103.0,0.07361815]
[1771716299452,0.01373019,68109.0,68103.0,0.07361815]
[1771716299656,0.07341074,68110.0,68103.0,0.07361815]
[1771716299971,0.0137302,68109.0,68103.0,0.07361815]
[1771716300318,0.07341074,68110.0,68103.0,0.07361815]
[1771716300516,0.01373004,68109.0,68103.0,0.07361815]
[1771716300713,0.07341074,68110.0,68103.0,0.07361815]
[1771716301013,0.01373063,68109.0,68103.0,0.07361815]
[1771716301152,0.07341074,68110.0,68103.0,0.07361815]
[1771716301355,0.01372881,68109.0,68103.0,0.07361815]
[1771716301611,0.07341074,68110.0,68103.0,0.07361815]
[1771716301813,0.08714114,68109.0,68102.0,0.0002]
[1771716301955,0.07341253,68109.0,68102.0,0.0002]
[1771716302153,0.07341074,68110.0,68102.0,0.0002]
[1771716302406,0.08713742,68109.0,68102.0,0.07361922]
[1771716302606,0.01372538,68108.0,68102.0,0.07361922]
[1771716302856,0.07341204,68109.0,68102.0,0.07361922]
[1771716303061,0.08713821,68108.0,68102.0,0.0002]
[1771716303311,0.07341159,68111.0,68102.0,0.05818876]
[1771716303481,0.07341188,68109.0,68102.0,0.05804536]
[1771716303686,0.01372286,68108.0,68102.0,0.05804536]
[1771716303885,0.07341188,68109.0,68102.0,0.05804536]
[1771716305189,0.0734127,68109.0,68101.0,0.07373654]
[1771716306152,0.07341087,68110.0,68102.0,0.07341928]
[1771716306287,0.014716,68109.0,68102.0,0.07341928]
[1771716306493,0.07341087,68110.0,68102.0,0.07341928]
[1771716306705,0.01371599,68109.0,68103.0,0.0734182]
[1771716306929,0.07341087,68110.0,68103.0,0.0734182]
[1771716307253,0.01371598,68109.0,68103.0,0.0734182]
[1771716307462,0.07340958,68111.0,68102.0,0.07341843]
[1771716307666,0.08712659,68110.0,68103.0,0.07341808]
[1771716307821,0.08712697,68109.0,68102.0,0.07361896]
[1771716308015,0.07341287,68108.0,68102.0,0.0002]
[1771716308218,0.07341202,68109.0,68102.0,0.07361918]
[1771716308420,0.07341271,68109.0,68102.0,0.0002]
[1771716309333,0.07341282,68108.0,68102.0,0.0002]
[1771716309534,0.07341195,68109.0,68102.0,0.07361911]
[1771716310148,0.07341195,68109.0,68102.0,0.01967036]
[1771716310359,0.07341195,68109.0,68101.0,0.06551141]
[1771716311136,0.07341195,68109.0,68101.0,0.07342036]
[1771716311630,0.07341172,68110.0,68100.0,0.14626]
[1771716311631,0.07341065,68110.0,68100.0,0.14626]
[1771716311828,0.07342143,68100.0,68099.0,9.34e-05]
[1771716312036,0.07342143,68100.0,68090.0,0.00036]
[1771716312037,0.07343006,68092.0,68090.0,1e-08]
[1771716312269,0.07343114,68091.0,68090.0,1e-08]
[1771716312694,0.07342861,68094.0,68090.0,1e-08]
[1771716312695,0.07343022,68092.0,68090.0,1e-08]
[1771716312934,0.07343222,68090.0,68087.0,0.0002]
[1771716313175,0.07343344,68089.0,68084.0,0.0002]
[1771716313395,0.0734345,68088.0,68084.0,0.0002]
[1771716314714,0.0734345,68088.0,68083.0,0.39856358]
[1771716314715,0.0734345,68088.0,68083.0,0.0002]
[1771716315356,0.0734345,68088.0,68074.0,0.39859408]
[1771716315357,0.0734428,68081.0,68078.0,1e-08]
[1771716315792,0.07344303,68080.0,68078.0,1e-08]
[1771716322321,0.07344408,68079.0,68078.0,1e-08]
[1771716322522,0.02306677,68077.0,68066.0,7.03e-05]
[1771716322692,0.07344732,68076.0,68066.0,7.03e-05]
[1771716322886,0.07344732,68076.0,68067.0,0.40821112]
[1771716323289,0.07344947,68075.0,68068.0,0.38421099]
[1771716327058,0.07344978,68074.0,68068.0,0.38421099]
[1771716329392,0.07344978,68074.0,68068.0,0.02400013]
[1771716329574,0.07345053,68075.0,68069.0,0.38421099]
[1771716330537,0.07345019,68074.0,68069.0,0.38421099]
[1771716330714,0.07345019,68074.0,68069.0,0.40821112]
[1771716331093,0.0002473,68090.0,68069.0,0.45766478]
[1771716331296,0.07374628,68087.0,68080.0,0.02400013]
[1771716331498,0.07374628,68087.0,68081.0,0.38421099]
[1771716331983,0.07374628,68087.0,68079.0,0.02400013]
[1771716332179,0.07343843,68085.0,68079.0,0.02400013]
[1771716332944,0.07374628,68087.0,68079.0,0.02400013]
[1771716332945,0.0003373,68090.0,68079.0,0.02400013]
[1771716333152,0.0003373,68090.0,68083.0,0.02400013]
[1771716333153,0.0734331,68090.0,68083.0,0.02400013]
[1771716333322,0.07343121,68091.0,68085.0,0.40821112]
[1771716336073,0.07343223,68090.0,68085.0,0.40821112]
[1771716337121,0.07343223,68090.0,68085.0,0.40806769]
[1771716340020,0.07343339,68089.0,68085.0,0.38421099]
[1771716340220,0.07343339,68089.0,68083.0,6.283e-05]
[1771716340467,0.07343562,68087.0,68083.0,0.02350202]
[1771716340643,0.07344084,68083.0,68080.0,0.00016]
[1771716340840,0.0735093,68083.0,68080.0,0.00016]
[1771716345899,6.846e-05,68083.0,68080.0,0.00016]
[1771716346122,0.07343582,68087.0,68080.0,0.46917594]
[1771716346522,0.21946217,68087.0,68080.0,0.46917594]
[1771716346723,0.07343582,68087.0,68080.0,0.46917594]
[1771716346958,0.21946015,68087.0,68080.0,0.46917594]
[1771716347251,0.07343582,68087.0,68080.0,0.46917594]
[1771716347452,0.21945842,68087.0,68080.0,0.46917594]
[1771716351423,0.21945842,68087.0,68080.0,0.46937594]
[1771716352006,0.21945842,68087.0,68080.0,0.46894566]
[1771716352933,0.21945842,68087.0,68080.0,0.39550281]
[1771716353075,0.07343582,68087.0,68080.0,0.39550281]
[1771716353273,0.07343773,68085.0,68080.0,0.41935291]
[1771716353722,0.29373443,68089.0,68080.0,0.41935291]
[1771716353870,0.07343829,68085.0,68080.0,0.41935291]
[1771716354073,0.0734333,68089.0,68080.0,0.41935291]
[1771716354292,0.08712526,68088.0,68080.0,0.49279559]
[1771716354495,0.0734353,68088.0,68080.0,0.49279559]
[1771716354713,0.07343565,68087.0,68080.0,0.49279559]
[1771716358170,0.01370407,68086.0,68080.0,0.49279559]
[1771716358477,0.07343565,68087.0,68080.0,0.49279559]
[1771716359275,0.01370721,68086.0,68080.0,0.49279559]
[1771716359439,0.21963275,68087.0,68080.0,0.49279559]
[1771716359637,0.15990433,68086.0,68080.0,0.49279559]
[1771716359845,0.1461971,68086.0,68080.0,0.49279559]
[1771716360036,0.07343565,68087.0,68080.0,0.49279559]
[1771716360231,0.01371142,68086.0,68080.0,0.46894549]
[1771716360738,0.15994759,68086.0,68080.0,0.46894549]
[1771716360935,0.01371142,68085.0,68080.0,0.49279559]
[1771716361136,0.01371904,68084.0,68080.0,0.49279559]
[1771716361371,0.14623617,68086.0,68080.0,0.49279559]
[1771716361702,0.15995535,68085.0,68080.0,0.49279559]
[1771716361995,0.16005665,68084.0,68080.0,0.49279559]
[1771716362151,0.07343565,68087.0,68080.0,0.49279559]
[1771716362356,0.01372169,68086.0,68080.0,0.49279559]
[1771716362607,0.01372169,68085.0,68080.0,0.49279559]
[1771716362778,0.01372169,68084.0,68080.0,0.49279559]
[1771716362943,0.1463388,68086.0,68080.0,0.49279559]
[1771716363143,0.16006053,68085.0,68080.0,0.49279559]
[1771716363348,0.16006053,68084.0,68080.0,0.49279559]
[1771716363548,0.07343565,68087.0,68080.0,0.49279559]
[1771716363763,0.01372172,68086.0,68080.0,0.49279559]
[1771716364004,0.21980048,68087.0,68080.0,0.46894549]
[1771716364217,0.14636483,68086.0,68080.0,0.46894549]
[1771716364448,0.07343565,68087.0,68080.0,0.49279559]
[1771716364449,0.14636483,68085.0,68080.0,0.49279559]
[1771716364657,0.14636483,68084.0,68080.0,0.49279559]
[1771716364868,0.14636483,68083.0,68080.0,0.49279559]
[1771716365183,0.07383565,68087.0,68080.0,0.49279559]
[1771716365393,0.14636978,68086.0,68080.0,0.49279559]
[1771716365972,0.14636978,68086.0,68080.0,0.41935291]
[1771716366163,0.00016,68090.0,68084.0,0.05611375]
[1771716366366,0.00016,68090.0,68084.0,0.05474796]
[1771716366617,0.00016,68090.0,68084.0,0.04136625]
[1771716366997,0.07359243,68090.0,68083.0,0.49286081]
[1771716368383,0.07359243,68090.0,68083.0,0.47522224]
[1771716370395,0.07359243,68090.0,68083.0,0.41386323]
[1771716370800,0.07272503,68090.0,68083.0,0.41386323]
[1771716371620,0.07312503,68090.0,68083.0,0.41386323]
[1771716372472,0.07312503,68090.0,68083.0,0.40227244]
[1771716375821,0.0004,68094.0,68081.0,0.39278229]
[1771716375939,0.01372897,68093.0,68087.0,0.07343474]
[1771716376145,0.07342785,68096.0,68087.0,0.07343474]
[1771716376453,0.07342783,68095.0,68087.0,0.07343474]
[1771716377393,0.07342824,68094.0,68087.0,0.02200807]
[1771716379280,0.2198185,68094.0,68087.0,0.02200807]
[1771716379454,0.14639026,68093.0,68087.0,0.02200807]
[1771716379647,0.14639026,68093.0,68088.0,0.07343414]
[1771716379853,0.14639026,68092.0,68088.0,0.07343414]
[1771716380093,0.07382704,68095.0,68089.0,0.07343326]
[1771716380094,0.14639026,68091.0,68089.0,0.07343326]
[1771716380297,0.0004,68095.0,68089.0,0.07343326]
[1771716381180,0.14675221,68095.0,68089.0,0.07343326]
[1771716381423,0.14675221,68095.0,68089.0,0.07328983]
[1771716381716,0.0004,68097.0,68093.0,0.46621082]
[1771716381872,0.0004,68097.0,68093.0,0.39278229]
[1771716382072,0.0004,68097.0,68091.0,0.07343083]
[1771716382279,0.07342575,68096.0,68089.0,0.49025552]
[1771716382480,0.07342575,68096.0,68089.0,0.46621528]
[1771716382899,0.07342575,68096.0,68086.0,0.1461]
[1771716382900,0.07342706,68095.0,68088.0,0.07343417]
[1771716385680,0.07382706,68095.0,68088.0,0.07343417]
[1771716387993,0.01371515,68094.0,68088.0,0.07343417]
[1771716388198,0.07382706,68095.0,68088.0,0.07343417]
[1771716388356,0.01371508,68094.0,68088.0,0.07343417]
[1771716388528,0.07382706,68095.0,68088.0,0.07343417]
[1771716388730,0.01371477,68094.0,68088.0,0.07343417]
[1771716388925,0.07382706,68095.0,68088.0,0.07343417]
[1771716389170,0.01371518,68094.0,68088.0,0.07343417]
[1771716389387,0.07382706,68095.0,68088.0,0.07343417]
[1771716389579,0.01371494,68094.0,68088.0,0.07343417]
[1771716389781,0.07382706,68095.0,68088.0,0.07343417]
[1771716389993,0.01371494,68094.0,68088.0,0.21953417]
[1771716390194,0.07382706,68095.0,68088.0,0.21953417]
[1771716390516,0.01371494,68094.0,68088.0,0.21953417]
[1771716390697,0.07382706,68095.0,68088.0,0.21953417]
[1771716390841,0.01371476,68094.0,68088.0,0.1461]
[1771716391045,0.07382706,68095.0,68088.0,0.1461]
[1771716391263,0.01371475,68094.0,68088.0,0.1461]
[1771716391488,0.07382706,68095.0,68088.0,0.1461]
[1771716391684,0.01371471,68094.0,68088.0,0.1461]
[1771716391857,0.07382706,68095.0,68088.0,0.1461]
[1771716392198,0.0137147,68094.0,68088.0,0.1461]
[1771716392348,0.07382706,68095.0,68088.0,0.1461]
[1771716392549,0.01371475,68094.0,68088.0,0.21973403]
[1771716392788,0.07382706,68095.0,68088.0,0.21973403]
[1771716392985,0.01371475,68094.0,68088.0,0.21973403]
[1771716393206,0.07382706,68095.0,68088.0,0.21973403]
[1771716393361,0.01371475,68094.0,68088.0,0.21973403]
[1771716393561,0.07382706,68095.0,68088.0,0.21973403]
[1771716393782,0.01371491,68094.0,68088.0,0.21973403]
[1771716394027,0.0004,68095.0,68089.0,0.07343307]
[1771716394198,0.01371638,68094.0,68089.0,0.07343307]
[1771716394400,0.0004,68095.0,68089.0,0.07343307]
[1771716394725,0.01371754,68094.0,68089.0,0.07343307]
[1771716394867,0.0004,68095.0,68089.0,0.07343307]
[1771716395073,0.01371754,68094.0,68089.0,0.07343307]
[1771716395272,0.0004,68095.0,68089.0,0.07343307]
[1771716395475,0.01371791,68094.0,68089.0,0.07359367]
[1771716395674,0.0004,68095.0,68089.0,0.07359367]
[1771716395892,0.0137179,68094.0,68089.0,0.07345023]
[1771716396096,0.0004,68095.0,68089.0,0.07330679]
[1771716396426,0.0137179,68094.0,68089.0,0.07330679]
[1771716396575,0.0004,68095.0,68089.0,0.07330679]
[1771716396775,0.01371833,68094.0,68089.0,0.07330679]
[1771716396972,0.0004,68104.0,68095.0,0.1461]
[1771716397201,0.0004,68104.0,68090.0,0.76529051]
[1771716397398,0.00051423,68104.0,68090.0,0.76545111]
[1771716397680,0.00051423,68104.0,68097.0,0.07342446]
[1771716398126,0.07393145,68104.0,68097.0,0.07342446]
[1771716399134,0.00051423,68104.0,68097.0,0.07342446]
[1771716400082,0.07393159,68104.0,68097.0,0.07342446]
[1771716405774,0.00051423,68104.0,68097.0,0.07342446]
[1771716406060,0.07381683,68105.0,68097.0,0.07342446]
[1771716406267,0.07381683,68105.0,68097.0,0.07353869]
[1771716406583,0.07381683,68105.0,68098.0,0.07342286]
[1771716406972,0.09738862,68105.0,68098.0,0.07342286]
[1771716407228,0.07341817,68104.0,68096.0,0.07342499]
[1771716407444,0.02368839,68104.0,68095.0,0.07342644]
[1771716407586,0.02368839,68104.0,68090.0,0.02420024]
[1771716407587,0.02357179,68101.0,68090.0,0.00016]
[1771716407761,0.02357179,68098.0,68091.0,0.07343008]
[1771716408156,0.09699545,68098.0,68091.0,0.07343008]
[1771716408562,0.09699545,68098.0,68090.0,0.07359207]
[1771716408563,0.02357179,68101.0,68090.0,0.00016]
[1771716408800,0.02357179,68101.0,68088.0,0.0002]
[1771716408801,0.09700023,68094.0,68088.0,0.0002]
[1771716410405,0.09700023,68094.0,68089.0,5.654e-05]
[1771716411706,0.07342917,68093.0,68089.0,5.654e-05]
[1771716415687,0.07342722,68095.0,68089.0,5.654e-05]
[1771716415893,0.07342497,68097.0,68090.0,0.07343211]
[1771716416115,0.01371262,68096.0,68090.0,0.07343211]
[1771716416328,0.07342497,68097.0,68090.0,0.07343211]
[1771716416525,0.0137129,68096.0,68090.0,0.07343211]
[1771716416738,0.07342497,68097.0,68090.0,0.07343211]
[1771716417068,0.08713869,68096.0,68089.0,0.07348947]
[1771716417218,0.07342579,68096.0,68089.0,0.07348947]
[1771716418876,0.09699608,68098.0,68089.0,0.07348947]
[1771716418877,0.09699558,68098.0,68091.0,0.07343112]
[1771716419097,0.01371291,68097.0,68091.0,0.07343112]
[1771716419317,0.01371291,68096.0,68091.0,0.07343112]
[1771716419449,0.07342379,68098.0,68091.0,0.07343112]
[1771716419652,0.0137134,68097.0,68091.0,0.07343112]
[1771716419888,0.0137134,68096.0,68091.0,0.07343112]
[1771716420070,0.07342379,68098.0,68091.0,0.07343112]
[1771716420276,0.01371338,68097.0,68091.0,0.07343112]
[1771716420474,0.01371338,68096.0,68090.0,0.07343023]
[1771716420673,0.02357179,68099.0,68089.0,5.654e-05]
[1771716420878,0.07342665,68096.0,68089.0,5.654e-05]
[1771716421597,0.07342665,68097.0,68089.0,5.654e-05]
[1771716421806,0.07342683,68095.0,68089.0,5.654e-05]
[1771716423530,0.07342683,68095.0,68089.0,0.07348975]
[1771716424242,0.29369595,68098.0,68089.0,5.654e-05]
[1771716424477,0.07342973,68093.0,68089.0,5.654e-05]
[1771716424643,0.0734283,68094.0,68089.0,5.654e-05]
[1771716425182,0.0734283,68094.0,68087.0,0.07352727]
[1771716425428,0.0734283,68094.0,68087.0,0.0733838]
[1771716425628,0.01371518,68093.0,68082.0,0.0002]
[1771716425804,0.09700661,68088.0,68082.0,0.0002]
[1771716425970,0.07343559,68087.0,68082.0,0.0002]
[1771716426172,0.09700738,68087.0,68082.0,0.0002]
[1771716429009,0.02357179,68087.0,68082.0,0.0002]
[1771716431178,0.02357179,68087.0,68082.0,0.07364048]
[1771716431407,0.02357179,68087.0,68083.0,0.07343974]
[1771716431624,0.0734326,68090.0,68083.0,0.07343974]
[1771716433945,0.07343311,68090.0,68082.0,0.0002]
[1771716434272,0.09767156,68090.0,68082.0,0.0002]
[1771716434478,0.02423845,68090.0,68085.0,0.07343749]
[1771716435490,0.02423845,68090.0,68086.0,0.07343613]
[1771716435808,0.0004,68094.0,68085.0,0.37689824]
[1771716435956,0.0004,68094.0,68092.0,0.07342983]
[1771716436811,0.0004,68094.0,68091.0,0.07343077]
[1771716438195,0.0004,68094.0,68093.0,0.07342898]
[1771716438396,0.00016,68100.0,68095.0,0.07342614]
[1771716438596,0.00016,68100.0,68094.0,0.07342614]
[1771716438798,0.00016,68100.0,68096.0,0.07342497]
[1771716439016,0.00016,68100.0,68098.0,0.07342274]
[1771716439236,0.000639,68104.0,68090.0,0.032383]
[1771716439237,0.000639,68104.0,68102.0,0.07341833]
[1771716439437,0.000639,68104.0,68101.0,0.07341984]
[1771716440215,0.000639,68104.0,68101.0,0.07337543]
[1771716440557,0.000639,68104.0,68102.0,0.07341897]
[1771716441473,0.0004,68109.0,68100.0,0.02375662]
[1771716441677,0.00016,68110.0,68108.0,0.07341281]
[1771716442171,0.00016,68110.0,68107.0,0.07341356]
[1771716442330,0.00016,68110.0,68107.0,0.07351631]
[1771716443167,0.00016,68110.0,68108.0,0.07341238]
[1771716443532,0.00016,68110.0,68107.0,0.07351631]
[1771716443730,0.0006083,68111.0,68107.0,0.07351631]
[1771716443984,0.17676,68115.0,68108.0,0.07341239]
[1771716444185,0.25016556,68115.0,68107.0,0.07351631]
[1771716445152,0.17676,68115.0,68110.0,0.07340977]
[1771716447621,0.07353349,68119.0,68110.0,0.07340977]
[1771716447622,0.07355005,68130.0,68122.0,0.01978486]
[1771716447838,0.17636,68131.0,68127.0,0.0733914]
[1771716448081,0.01370015,68130.0,68127.0,0.07339137]
[1771716448313,0.02423845,68138.0,68120.0,0.00016]
[1771716448314,0.02444865,68149.0,68132.0,0.02375662]
[1771716448558,0.02444865,68149.0,68130.0,0.00016]
[1771716448559,0.39003673,68146.0,68130.0,0.00016]
[1771716448721,0.07338526,68134.0,68126.0,0.07339294]
[1771716448868,0.09762444,68133.0,68125.0,0.07339427]
[1771716449300,0.07338027,68139.0,68130.0,0.07338885]
[1771716449498,0.07376924,68139.0,68130.0,0.07338885]
[1771716449698,0.07338054,68138.0,68130.0,0.07338885]
[1771716450103,0.07338181,68137.0,68129.0,0.07338994]
[1771716452554,0.07338401,68135.0,68127.0,0.07339209]
[1771716452767,0.07338509,68134.0,68126.0,0.07339286]
[1771716453137,0.07338596,68133.0,68124.0,0.09715194]
[1771716453347,0.07338373,68135.0,68127.0,0.07339231]
[1771716453722,0.07338286,68136.0,68128.0,0.07339103]
[1771716453922,0.07338209,68137.0,68127.0,0.07339231]
[1771716454174,0.07338386,68135.0,68127.0,0.07339231]
[1771716454379,0.07338493,68134.0,68127.0,0.07339231]
[1771716454619,0.07338493,68134.0,68126.0,0.07339339]
[1771716457785,0.07378493,68134.0,68126.0,0.07339339]
[1771716461208,0.0004,68134.0,68127.0,0.07339211]
[1771716461402,0.07378481,68134.0,68127.0,0.07339211]
[1771716467443,0.07338662,68133.0,68126.0,0.07359317]
[1771716467753,0.07378515,68134.0,68126.0,0.07359317]
[1771716468973,0.07378515,68134.0,68127.0,0.07339222]
[1771716471234,0.0004,68134.0,68130.0,0.07338896]
[1771716471942,0.07338129,68138.0,68130.0,0.07338896]
[1771716472144,0.01368141,68137.0,68130.0,0.07338896]
[1771716472370,0.01368141,68136.0,68130.0,0.07338896]
[1771716472532,0.01368141,68135.0,68130.0,0.45231687]
[1771716472736,0.07338129,68138.0,68130.0,0.45231687]
[1771716472981,0.01368591,68137.0,68130.0,0.45231687]
[1771716473176,0.07338129,68138.0,68130.0,0.45231687]
[1771716473177,0.0004,68134.0,68130.0,0.45231687]
[1771716473695,0.0004,68134.0,68131.0,0.02333693]
[1771716474267,0.01369883,68133.0,68131.0,0.02333693]
[1771716474437,0.0004,68134.0,68131.0,0.09672453]
[1771716474638,0.00038897,68139.0,68132.0,0.07338622]
[1771716474862,0.07376838,68139.0,68132.0,0.07338622]
[1771716475588,0.07376838,68139.0,68132.0,0.09672315]
[1771716477537,0.00029897,68139.0,68132.0,0.02333693]
[1771716477832,0.00029897,68139.0,68132.0,0.0967235]
[1771716477833,0.07367843,68139.0,68132.0,0.0967235]
[1771716478178,0.00029897,68139.0,68132.0,0.02333693]